fUST/lending_fUST_20250611
["ID","MTS","AMOUNT","RATE_DAILY","PERIOD"]
[365391773,1749645040120,-460.0,0.00021917,4]
[365391775,1749645040129,-460.0,0.00021917,4]
[365391777,1749645040139,-460.0,0.00021917,4]
[365391779,1749645040150,-460.0,0.00021917,4]
[365391781,1749645040160,-460.0,0.00021917,2]
[365391783,1749645040170,-1948.02,0.00021917,4]
[365391785,1749645040180,-460.0,0.00021917,4]
[365391786,1749645040190,-460.0,0.00021917,4]
[365391789,1749645040200,-620.44,0.00021917,4]
[365391791,1749645040210,-562.7,0.00021917,4]
[365391793,1749645040220,-1534.68,0.00021917,4]
[365391795,1749645040230,-860.71,0.00021917,4]
[365391797,1749645040243,-914.64,0.00021917,4]
[365391798,1749645040253,-1321.09,0.00021917,4]
[365391801,1749645040271,-1173.31,0.00021917,4]
[365391804,1749645040282,-460.0,0.00021917,4]
[365391806,1749645040292,-1351.66,0.00021917,4]
[365391808,1749645040303,-926.0,0.00021917,4]
[365391810,1749645040313,-460.0,0.00021917,4]
[365391812,1749645040323,-1097.44,0.00021917,4]
[365391814,1749645040334,-460.0,0.00021917,4]
[365391816,1749645040344,-544.99,0.00021917,4]
[365391818,1749645040354,-1753.04,0.00021917,4]
[365391820,1749645040364,-576.21,0.00021917,4]
[365391822,1749645040374,-568.25,0.00021917,4]
[365391824,1749645040384,-641.57,0.00021917,4]
[365391826,1749645040393,-773.55,0.00021917,4]
[365391828,1749645040403,-164.458426,0.00021918,2]
[365391830,1749645040413,-1000.0,0.00021952,2]
[365391832,1749645040424,-1110.63623726,0.00021969,6]
[365391834,1749645040433,-5057.46973144,0.0002199,2]
[365391836,1749645040443,-500.0,0.00021991,2]
[365391838,1749645040453,-357.51560398,0.00021991,2]
[365391840,1749645040463,-1000.0,0.00021991,2]
[365391842,1749645040474,-165.0,0.00022,2]
[365391844,1749645040486,-160.0,0.00022,2]
[365391847,1749645040497,-11860.25191276,0.00022,7]
[365391849,1749645040507,-160.0,0.00022,7]
[365391851,1749645040517,-213.16534259,0.00022,7]
[365391853,1749645040527,-76293.9245168,0.00022,2]
[365391855,1749645040537,-119381.75,0.00022,7]
[365391857,1749645040547,-160.0,0.00022,2]
[365391859,1749645040557,-979.90183394,0.00022021,2]
[365391861,1749645040568,-1303.63,0.00022102,2]
[365391864,1749645040723,-1110.63623726,0.00022141,6]
[365391865,1749645040742,-1500.0,0.00022168,2]
[365391866,1749645040752,-646.0,0.00022189,2]
[365391867,1749645040761,-460.0,0.00022191,4]
[365391868,1749645040771,-360.0,0.00022191,4]
[365391869,1749645040780,-1104.01,0.00022191,4]
[365391870,1749645040790,-460.0,0.00022191,4]
[365391871,1749645040801,-460.0,0.00022191,4]
[365391872,1749645040810,-525.29,0.00022191,4]
[365391873,1749645040821,-160.15,0.00022191,4]
[365391874,1749645040831,-460.0,0.00022191,2]
[365391875,1749645040841,-1948.02,0.00022191,4]
[365391876,1749645040851,-460.0,0.00022191,4]
[365391877,1749645040861,-460.0,0.00022191,4]
[365391878,1749645040871,-620.44,0.00022191,4]
[365391879,1749645040881,-562.7,0.00022191,4]
[365391880,1749645040890,-1534.68,0.00022191,4]
[365391881,1749645040900,-860.71,0.00022191,4]
[365391882,1749645040910,-914.64,0.00022191,4]
[365391883,1749645040919,-1321.09,0.00022191,4]
[365391884,1749645040929,-1173.31,0.00022191,4]
[365391885,1749645040939,-460.0,0.00022191,4]
[365391886,1749645040949,-1351.66,0.00022191,4]
[365391887,1749645040959,-926.0,0.00022191,4]
[365391888,1749645040969,-460.0,0.00022191,4]
[365391889,1749645040978,-1097.44,0.00022191,4]
[365391890,1749645040992,-460.0,0.00022191,4]
[365391891,1749645041001,-544.99,0.00022191,4]
[365391892,1749645041011,-1753.04,0.00022191,4]
[365391893,1749645041022,-576.21,0.00022191,4]
[365391894,1749645041031,-641.57,0.00022191,4]
[365391895,1749645041042,-568.25,0.00022191,4]
[365391896,1749645041051,-773.55,0.00022191,4]
[365391897,1749645041062,-646.0,0.00022197,2]
[365391898,1749645041071,-225.75298496,0.000222,69]
[365391899,1749645041082,-225.75298494,0.000222,69]
[365391900,1749645041091,-963.0,0.0002222,2]
[365391901,1749645041101,-405.0,0.0002222,2]
[365391902,1749645041111,-405.0,0.0002222,2]
[365391903,1749645041120,-2160.0,0.0002222,2]
[365391904,1749645041130,-718.076,0.0002222,2]
[365391905,1749645041140,-1110.63623726,0.00022314,7]
[365391906,1749645041150,-646.0,0.00022316,2]
[365391907,1749645041159,-225.75298494,0.00022346,69]
[365391908,1749645041169,-290.9921211,0.00022385,2]
[365391909,1749645041178,-5000.0,0.00022448,2]
[365391910,1749645041188,-420.0,0.00022458,2]
[365391911,1749645041197,-460.0,0.00022465,4]
[365391912,1749645041207,-1104.01,0.00022465,4]
[365391913,1749645041217,-460.0,0.00022465,4]
[365391914,1749645041226,-460.0,0.00022465,4]
[365391915,1749645041237,-460.0,0.00022465,2]
[365391916,1749645041246,-1948.02,0.00022465,4]
[365391917,1749645041256,-460.0,0.00022465,4]
[365391918,1749645041266,-460.0,0.00022465,4]
[365391920,1749645041275,-620.44,0.00022465,4]
[365391922,1749645041285,-562.7,0.00022465,4]
[365391923,1749645041295,-1534.68,0.00022465,4]
[365391925,1749645041304,-860.71,0.00022465,4]
[365391926,1749645041314,-914.64,0.00022465,4]
[365391927,1749645041324,-1321.09,0.00022465,4]
[365391929,1749645041333,-1173.31,0.00022465,4]
[365391931,1749645041343,-460.0,0.00022465,4]
[365391932,1749645041353,-1351.66,0.00022465,4]
[365391934,1749645041363,-926.0,0.00022465,4]
[365391936,1749645041373,-460.0,0.00022465,4]
[365391938,1749645041383,-1097.44,0.00022465,4]
[365391941,1749645041393,-460.0,0.00022465,4]
[365391943,1749645041402,-544.99,0.00022465,4]
[365391945,1749645041411,-1753.04,0.00022465,4]
[365391946,1749645041421,-576.21,0.00022465,4]
[365391948,1749645041431,-641.57,0.00022465,4]
[365391951,1749645041443,-568.25,0.00022465,4]
[365391953,1749645041452,-773.55,0.00022465,4]
[365391955,1749645041462,-1110.63623726,0.00022486,7]
[365391956,1749645041472,-2000.0,0.000225,2]
[365391958,1749645041481,-2986.11,0.000226,7]
[365391961,1749645041496,-1110.63623726,0.00022659,7]
[365391963,1749645041506,-215.0738,0.00022671,2]
[365391964,1749645041515,-504.43395862,0.00022673,2]
[365391967,1749645041525,-500.0,0.00022673,2]
[365391968,1749645041534,-500.0,0.00022673,2]
[365391971,1749645041545,-502.02826796,0.00022673,2]
[365391973,1749645041555,-160.50512646,0.00022673,2]
[365391975,1749645041564,-500.0,0.00022673,2]
[365391976,1749645041575,-500.0,0.00022673,2]
[365391978,1749645041586,-500.0,0.00022673,2]
[365391980,1749645041596,-500.0,0.00022673,2]
[365391982,1749645041606,-500.0,0.00022673,2]
[365391984,1749645041616,-500.0,0.00022673,2]
[365391986,1749645041626,-500.0,0.00022673,2]
[365391988,1749645041637,-500.0,0.00022673,2]
[365391990,1749645041647,-500.0,0.00022673,2]
[365391992,1749645041656,-500.0,0.00022673,2]
[365391994,1749645041667,-500.0,0.00022673,2]
[365391996,1749645041676,-501.7305086,0.00022673,2]
[365391998,1749645041687,-500.0,0.00022673,2]
[365392000,1749645041696,-500.0,0.00022673,2]
[365392002,1749645041707,-338529.51012904,0.000227,2]
[365392005,1749645041717,-646.0,0.00022716,2]
[365392006,1749645041726,-2000.0,0.00022716,2]
[365392009,1749645041738,-54639.0,0.0002273,3]
[365392010,1749645041747,-11860.25191276,0.0002273,3]
[365392013,1749645041757,-844.64040732,0.0002273,3]
[365392014,1749645041768,-160.0,0.0002273,3]
[365392016,1749645041778,-213.16534259,0.0002273,3]
[365392018,1749645041787,-198.33,0.00022738,2]
[365392020,1749645041797,-460.0,0.00022739,4]
[365392022,1749645041807,-1104.01,0.00022739,4]
[365392024,1749645041817,-460.0,0.00022739,4]
[365392026,1749645041826,-460.0,0.00022739,4]
[365392028,1749645041836,-460.0,0.00022739,2]
[365392031,1749645041845,-1948.02,0.00022739,4]
[365392033,1749645041855,-460.0,0.00022739,4]
[365392034,1749645041864,-460.0,0.00022739,4]
[365392037,1749645041874,-620.44,0.00022739,4]
[365392039,1749645041883,-562.7,0.00022739,4]
[365392040,1749645041893,-1534.68,0.00022739,4]
[365392043,1749645041902,-860.71,0.00022739,4]
[365392045,1749645041912,-914.64,0.00022739,4]
[365392047,1749645041921,-1321.09,0.00022739,4]
[365392049,1749645041931,-1173.31,0.00022739,4]
[365392051,1749645041941,-460.0,0.00022739,4]
[365392052,1749645041952,-1351.66,0.00022739,4]
[365392054,1749645041962,-926.0,0.00022739,4]
[365392055,1749645041971,-541.55509361,0.00022739,4]
[365392056,1749645041981,-1097.44,0.00022739,4]
[365392057,1749645041994,-460.0,0.00022739,4]
[365392058,1749645042004,-544.99,0.00022739,4]
[365392059,1749645042015,-1753.04,0.00022739,4]
[365392060,1749645042025,-576.21,0.00022739,4]
[365392061,1749645042034,-641.57,0.00022739,4]
[365392062,1749645042044,-568.25,0.00022739,4]
[365392063,1749645042053,-773.55,0.00022739,4]
[365392064,1749645042062,-646.0,0.00022765,2]
[365392065,1749645042072,-646.0,0.00022773,2]
[365392066,1749645042082,-646.0,0.00022799,2]
[365392067,1749645042092,-1110.63623726,0.00022831,8]
[365392068,1749645042102,-407.70456056,0.00022835,2]
[365392069,1749645042111,-290.9921211,0.00022942,2]
[365392070,1749645042121,-59759.54540203,0.00022972,2]
[365392071,1749645042131,-500.0,0.00022973,2]
[365392072,1749645042140,-500.0,0.00022973,2]
[365392073,1749645042150,-500.0,0.00022973,2]
[365392074,1749645042160,-500.0,0.00022973,2]
[365392075,1749645042170,-500.0,0.00022973,2]
[365392076,1749645042179,-500.0,0.00022973,2]
[365392077,1749645042192,-600.0,0.00022973,2]
[365392078,1749645042212,-500.0,0.00022973,2]
[365392079,1749645042232,-5000.0,0.00022996,2]
[365392080,1749645042249,-100000.3987736,0.00023,2]
[365392081,1749645042260,-517.4,0.00023,7]
[365392082,1749645042272,-2000.0,0.00023,2]
[365392083,1749645042283,-160.0,0.00023,3]
[365392084,1749645042293,-835.03886221,0.00023,3]
[365392085,1749645042303,-160.0,0.00023,3]
[365392086,1749645042314,-424.19973472,0.00023,3]
[365392087,1749645042325,-51772.24185188,0.00023,20]
[365392088,1749645042336,-1328.71905864,0.00023,2]
[365392089,1749645042345,-12150.94351892,0.00023,2]
[365392090,1749645042355,-184.0,0.00023,5]
[365392091,1749645042365,-229.71724145,0.00023,3]
[365392092,1749645042374,-151.0,0.00023,7]
[365392093,1749645042385,-184.0,0.00023,4]
[365392094,1749645042394,-1110.63623726,0.00023003,8]
[365392095,1749645042403,-500.0,0.00023011,8]
[365392096,1749645042412,-500.0,0.00023011,8]
[365392097,1749645042421,-501.75778069,0.00023011,8]
[365392098,1749645042431,-151.0,0.00023013,7]
[365392099,1749645042440,-151.0,0.00023013,7]
[365392100,1749645042449,-460.0,0.00023013,4]
[365392101,1749645042458,-1104.01,0.00023013,4]
[365392102,1749645042468,-460.0,0.00023013,4]
[365392103,1749645042477,-460.0,0.00023013,2]
[365392104,1749645042489,-1948.02,0.00023013,4]
[365392105,1749645042498,-460.0,0.00023013,4]
[365392106,1749645042507,-460.0,0.00023013,4]
[365392107,1749645042517,-620.44,0.00023013,4]
[365392108,1749645042526,-562.7,0.00023013,4]
[365392109,1749645042535,-1534.68,0.00023013,4]
[365392110,1749645042545,-860.71,0.00023013,4]
[365392111,1749645042555,-914.64,0.00023013,4]
[365392112,1749645042565,-1321.09,0.00023013,4]
[365392113,1749645042575,-1173.31,0.00023013,4]
[365392114,1749645042585,-460.0,0.00023013,4]
[365392115,1749645042597,-1351.66,0.00023013,4]
[365392117,1749645042607,-926.0,0.00023013,4]
[365392119,1749645042616,-1097.44,0.00023013,4]
[365392122,1749645042628,-460.0,0.00023013,4]
[365392125,1749645042637,-544.99,0.00023013,4]
[365392126,1749645042647,-1753.04,0.00023013,4]
[365392127,1749645042657,-576.21,0.00023013,4]
[365392128,1749645042666,-641.57,0.00023013,4]
[365392129,1749645042676,-568.25,0.00023013,4]
[365392130,1749645042685,-773.55,0.00023013,4]
[365392131,1749645042695,-646.0,0.00023035,2]
[365392133,1749645042704,-151.0,0.00023043,7]
[365392134,1749645042714,-646.0,0.00023046,2]
[365392135,1749645042723,-1738.17,0.00023063,2]
[365392136,1749645042732,-729.29325,0.00023096,2]
[365392137,1749645042745,-1110.63623726,0.00023176,8]
[365392138,1749645042755,-1561.208436,0.00023177,3]
[365392139,1749645042765,-2000.0,0.000232,2]
[365392141,1749645042775,-376.595356,0.00023214,2]
[365392143,1749645042784,-199.24091782,0.00023221,2]
[365392145,1749645042794,-1000.0,0.00023221,2]
[365392147,1749645042804,-500.4986817,0.00023221,2]
[365392149,1749645042814,-1005.84635583,0.00023221,2]
[365392151,1749645042823,-1000.0,0.00023221,2]
[365392170,1749645042918,-1008.33639286,0.00023221,2]
[365392176,1749645042928,-1000.0,0.00023221,2]
[365392179,1749645042938,-1000.0,0.00023221,2]
[365392182,1749645042947,-1000.0,0.00023221,2]
[365392185,1749645042956,-1000.0,0.00023221,2]
[365392188,1749645042965,-549.0822002,0.00023221,2]
[365392192,1749645042975,-505.53938396,0.00023221,2]
[365392197,1749645042988,-1000.0,0.00023221,2]
[365392201,1749645042998,-1000.0,0.00023221,2]
[365392205,1749645043008,-1000.0,0.00023221,2]
[365392208,1749645043018,-2500.0,0.00023264,2]
[365392213,1749645043027,-460.0,0.00023287,4]
[365392217,1749645043037,-1104.01,0.00023287,4]
[365392222,1749645043046,-460.0,0.00023287,4]
[365392226,1749645043055,-460.0,0.00023287,2]
[365392229,1749645043066,-1948.02,0.00023287,4]
[365392231,1749645043076,-460.0,0.00023287,4]
[365392234,1749645043085,-460.0,0.00023287,4]
[365392238,1749645043095,-620.44,0.00023287,4]
[365392239,1749645043104,-562.7,0.00023287,4]
[365392242,1749645043114,-1534.68,0.00023287,4]
[365392244,1749645043123,-860.71,0.00023287,4]
[365392247,1749645043132,-914.64,0.00023287,4]
[365392250,1749645043141,-1321.09,0.00023287,4]
[365392252,1749645043151,-1173.31,0.00023287,4]
[365392256,1749645043160,-470.45504447,0.00023287,4]
[365392259,1749645043169,-1351.66,0.00023287,4]
[365392262,1749645043179,-926.0,0.00023287,4]
[365392264,1749645043188,-1097.44,0.00023287,4]
[365392267,1749645043198,-460.0,0.00023287,4]
[365392269,1749645043208,-544.99,0.00023287,4]
[365392271,1749645043217,-1753.04,0.00023287,4]
[365392273,1749645043226,-576.21,0.00023287,4]
[365392275,1749645043237,-641.57,0.00023287,4]
[365392277,1749645043247,-568.25,0.00023287,4]
[365392279,1749645043256,-773.55,0.00023287,4]
[365392281,1749645043266,-168.3351789,0.000233,2]
[365392283,1749645043275,-639.0,0.000233,2]
[365392285,1749645043284,-119381.75,0.000233,7]
[365392289,1749645043295,-646.0,0.00023304,2]
[365392292,1749645043305,-1110.63623726,0.00023348,9]
[365392295,1749645043314,-1689.123308,0.0002338,5]
[365392297,1749645043324,-823.0,0.00023381,2]
[365392300,1749645043333,-6066.69733587,0.000234,7]
[365392303,1749645043342,-6066.69733587,0.000234,7]
[365392306,1749645043351,-151.0,0.000234,7]
[365392309,1749645043361,-2000.0,0.000234,2]
[365392311,1749645043370,-1000.0,0.000234,5]
[365392312,1749645043379,-1000.0,0.0002342,5]
[365392313,1749645043389,-214.84348353,0.00023425,2]
[365392314,1749645043400,-171.8747868,0.00023425,2]
[365392315,1749645043409,-171.8747868,0.00023425,2]
[365392316,1749645043419,-1000.0,0.0002344,5]
[365392317,1749645043428,-646.0,0.00023457,2]
[365392318,1749645043437,-1000.0,0.0002346,5]
[365392321,1749645043446,-1000.0,0.0002348,5]
[365392324,1749645043456,-151.0,0.000235,7]
[365392326,1749645043465,-2005.14,0.000235,2]
[365392328,1749645043475,-1000.0,0.000235,5]
[365392329,1749645043486,-290.9921211,0.000235,2]
[365392330,1749645043495,-401.53346736,0.000235,2]
[365392331,1749645043505,-600.0,0.0002352,2]
[365392332,1749645043514,-1000.0,0.0002352,5]
[365392333,1749645043523,-502.09184424,0.00023521,2]
[365392334,1749645043533,-1012.72178487,0.00023521,2]
[365392335,1749645043542,-563.34541535,0.00023521,2]
[365392336,1749645043551,-1000.0,0.00023521,2]
[365392337,1749645043560,-503.33767011,0.00023521,2]
[365392338,1749645043570,-1001.60046574,0.00023521,2]
[365392339,1749645043579,-1200.0,0.00023521,2]
[365392340,1749645043589,-1008.66231986,0.00023521,2]
[365392341,1749645043599,-1110.63623726,0.00023521,9]
[365392342,1749645043609,-151.0,0.00023521,7]
[365392343,1749645043621,-151.0,0.00023521,7]
[365392344,1749645043630,-471.792786,0.00023536,2]
[365392345,1749645043640,-1000.0,0.0002354,5]
[365392346,1749645043650,-5000.0,0.00023544,2]
[365392347,1749645043659,-120694.32838128,0.00023546,2]
[365392356,1749645043761,-89184.83221715,0.00023546,2]
[365392358,1749645043772,-3976.4326,0.00023546,2]
[365392407,1749645046439,-460.0,0.00021095,4]
[365392408,1749645046449,-466.04,0.00021369,4]
[365392409,1749645046458,-3373.65242337,0.00023546,2]
[365392410,1749645046470,-7136.2447882,0.00023546,2]
[365392411,1749645046480,-1844.832955,0.0002356,5]
[365392412,1749645046492,-1000.0,0.0002356,5]
[365392413,1749645046502,-460.0,0.00023561,4]
[365392414,1749645046511,-1104.01,0.00023561,4]
[365392415,1749645046520,-460.0,0.00023561,2]
[365392416,1749645046530,-1948.02,0.00023561,4]
[365392417,1749645046539,-460.0,0.00023561,4]
[365392418,1749645046549,-460.0,0.00023561,4]
[365392419,1749645046558,-620.44,0.00023561,4]
[365392420,1749645046569,-562.7,0.00023561,4]
[365392421,1749645046579,-1534.68,0.00023561,4]
[365392422,1749645046589,-860.71,0.00023561,4]
[365392423,1749645046598,-914.64,0.00023561,4]
[365392424,1749645046608,-1321.09,0.00023561,4]
[365392425,1749645046621,-1173.31,0.00023561,4]
[365392426,1749645046631,-1351.66,0.00023561,4]
[365392427,1749645046641,-926.0,0.00023561,4]
[365392428,1749645046651,-1097.44,0.00023561,4]
[365392429,1749645046663,-460.0,0.00023561,4]
[365392430,1749645046673,-544.99,0.00023561,4]
[365392431,1749645046683,-1753.04,0.00023561,4]
[365392432,1749645046695,-576.21,0.00023561,4]
[365392433,1749645046706,-641.57,0.00023561,4]
[365392434,1749645046715,-568.25,0.00023561,4]
[365392435,1749645046726,-773.55,0.00023561,4]
[365392436,1749645046736,-500.0,0.00023573,2]
[365392437,1749645046748,-501.18790876,0.00023573,2]
[365392438,1749645046758,-500.58096557,0.00023573,2]
[365392439,1749645046769,-507.13833281,0.00023573,2]
[365392440,1749645046778,-501.29927995,0.00023573,2]
[365392441,1749645046788,-573.96804753,0.00023573,2]
[365392442,1749645046798,-501.7732377,0.00023573,2]
[365392443,1749645046808,-500.0,0.00023573,2]
[365392444,1749645046818,-500.0,0.00023573,2]
[365392445,1749645046828,-500.0,0.00023573,2]
[365392446,1749645046838,-500.0,0.00023573,2]
[365392447,1749645046848,-500.0,0.00023573,2]
[365392448,1749645046858,-225.75298494,0.00023573,75]
[365392449,1749645046868,-471.792786,0.00023575,2]
[365392450,1749645046877,-1000.0,0.0002358,5]
[365392451,1749645046887,-1000.0,0.0002358,5]
[365392452,1749645046896,-471.792786,0.00023589,2]
[365392453,1749645046905,-12399.61609188,0.000236,2]
[365392454,1749645046914,-68247.8422945,0.000236,2]
[365392455,1749645046926,-143648.79628583,0.000236,2]
[365392456,1749645046937,-11401.5490479,0.000236,2]
[365392457,1749645046946,-9093.99205888,0.000236,2]
[365392458,1749645046958,-11132.79999996,0.000236,2]
[365392459,1749645127529,1970.0,0.00024981,120]
[365392461,1749645263051,165.319389,0.00013699,2]
[365392566,1749646232620,-407.70456056,0.000189,2]
[365392568,1749646232633,-28.98527114,0.00019761,2]
[365392571,1749646232650,-671.42102786,0.00019761,2]
[365392573,1749646232662,-300.0,0.00019834,2]
[365392575,1749646232675,-21894.7340417,0.00019835,2]
[365392577,1749646232686,-236.810614,0.00019835,2]
[365392580,1749646232697,-173.1973884,0.00020027,2]
[365392582,1749646232709,-408.82,0.00020163,2]
[365392584,1749646232721,-2010.5258676,0.00020173,2]
[365392586,1749646232732,-262.8560242,0.00020344,2]
[365392588,1749646232744,-1903.2098876,0.00020669,2]
[365392590,1749646232756,-525.09272011,0.000209,4]
[365392592,1749646232768,-502.12714138,0.00020995,2]
[365392595,1749646232780,-525.09271993,0.00021038,4]
[365392597,1749646232791,-300.0,0.00021093,2]
[365392598,1749646232802,-190.22,0.00021094,2]
[365392599,1749646232812,-175.863,0.00021094,2]
[365392600,1749646232821,-460.0,0.00021095,4]
[365392601,1749646232830,-460.0,0.00021095,4]
[365392602,1749646232840,-460.0,0.00021095,4]
[365392603,1749646232849,-460.0,0.00021095,4]
[365392604,1749646232858,-460.0,0.00021095,4]
[365392605,1749646232867,-1608.55,0.00021095,4]
[365392606,1749646233049,-460.0,0.00021095,4]
[365392607,1749646233063,-460.0,0.00021095,4]
[365392608,1749646233074,-506.29,0.00021095,4]
[365392609,1749646233084,-473.88,0.00021095,4]
[365392610,1749646233097,-460.0,0.00021095,4]
[365392611,1749646233107,-380.0,0.00021095,4]
[365392612,1749646233117,-1040.54,0.00021095,4]
[365392613,1749646233127,-1295.4,0.00021095,4]
[365392614,1749646233137,-647.87,0.00021095,4]
[365392615,1749646233147,-996.15,0.00021095,4]
[365392616,1749646233156,-957.43,0.00021095,4]
[365392617,1749646233168,-460.0,0.00021095,4]
[365392618,1749646233179,-460.0,0.00021095,4]
[365392619,1749646233189,-704.66,0.00021095,4]
[365392620,1749646233199,-460.0,0.00021095,4]
[365392621,1749646233209,-897.27,0.00021095,4]
[365392622,1749646233218,-878.14,0.00021095,4]
[365392623,1749646233228,-1334.0,0.00021095,4]
[365392624,1749646233237,-460.0,0.00021095,4]
[365392625,1749646233247,-460.0,0.00021095,4]
[365392626,1749646233258,-341.25698762,0.00021095,4]
[365392627,1749646233269,-488.21,0.00021095,4]
[365392628,1749646233278,-460.0,0.00021095,4]
[365392629,1749646233287,-588.64,0.00021095,4]
[365392630,1749646233297,-460.0,0.00021095,4]
[365392631,1749646233307,-817.65,0.00021124,2]
[365392632,1749646233316,-525.09271993,0.00021176,4]
[365392633,1749646233326,-207.4,0.00021302,2]
[365392634,1749646233335,-525.09271993,0.00021314,5]
[365392635,1749646233345,-966.88,0.00021368,4]
[365392636,1749646233355,-460.0,0.00021368,4]
[365392637,1749646233364,-460.0,0.00021368,4]
[365392638,1749646233374,-460.0,0.00021368,4]
[365392639,1749646233384,-460.0,0.00021368,4]
[365392640,1749646233393,-460.0,0.00021368,4]
[365392641,1749646233403,-460.0,0.00021368,4]
[365392642,1749646233413,-460.0,0.00021368,2]
[365392643,1749646233423,-319.72233618,0.00021368,4]
[365392644,1749646233432,-460.0,0.00021368,4]
[365392645,1749646233442,-460.0,0.00021368,4]
[365392646,1749646233451,-460.0,0.00021368,4]
[365392647,1749646233460,-400.0,0.00021369,4]
[365392648,1749646233469,-460.0,0.00021369,4]
[365392649,1749646233478,-460.0,0.00021369,4]
[365392650,1749646233488,-460.0,0.00021369,4]
[365392651,1749646233497,-460.0,0.00021369,4]
[365392652,1749646233506,-1608.55,0.00021369,4]
[365392653,1749646233515,-460.0,0.00021369,4]
[365392654,1749646233525,-506.29,0.00021369,4]
[365392655,1749646233534,-473.88,0.00021369,4]
[365392656,1749646233546,-460.0,0.00021369,4]
[365392657,1749646233555,-1040.54,0.00021369,4]
[365392658,1749646233564,-1295.4,0.00021369,4]
[365392659,1749646233574,-647.87,0.00021369,4]
[365392660,1749646233584,-996.15,0.00021369,4]
[365392661,1749646233593,-957.43,0.00021369,4]
[365392662,1749646233602,-460.0,0.00021369,4]
[365392663,1749646233612,-704.66,0.00021369,4]
[365392664,1749646233621,-541.55509361,0.00021369,4]
[365392665,1749646233630,-897.27,0.00021369,4]
[365392666,1749646233640,-878.14,0.00021369,4]
[365392667,1749646233649,-1334.0,0.00021369,4]
[365392668,1749646233659,-460.0,0.00021369,4]
[365392669,1749646233669,-460.0,0.00021369,4]
[365392670,1749646233679,-488.21,0.00021369,4]
[365392671,1749646233689,-460.0,0.00021369,4]
[365392672,1749646233698,-588.64,0.00021369,4]
[365392673,1749646233707,-525.09271993,0.00021452,5]
[365392674,1749646233717,-502.12714134,0.00021548,2]
[365392675,1749646233727,-525.09271993,0.0002159,5]
[365392676,1749646233736,-420.0,0.00021601,2]
[365392677,1749646233745,-966.88,0.00021642,4]
[365392678,1749646233754,-460.0,0.00021642,4]
[365392679,1749646233764,-471.87,0.00021642,4]
[365392680,1749646233774,-460.0,0.00021642,4]
[365392681,1749646233784,-460.0,0.00021642,2]
[365392682,1749646233794,-418.83361648,0.00021642,4]
[365392683,1749646233804,-460.0,0.00021642,4]
[365392684,1749646233814,-460.0,0.00021643,4]
[365392685,1749646233823,-460.0,0.00021643,4]
[365392686,1749646233833,-1608.55,0.00021643,4]
[365392687,1749646233842,-460.0,0.00021643,4]
[365392688,1749646233853,-506.29,0.00021643,4]
[365392689,1749646233863,-473.88,0.00021643,4]
[365392690,1749646233873,-460.0,0.00021643,4]
[365392691,1749646233883,-1040.54,0.00021643,4]
[365392692,1749646233893,-1295.4,0.00021643,4]
[365392693,1749646233904,-647.87,0.00021643,4]
[365392694,1749646233914,-996.15,0.00021643,4]
[365392695,1749646233924,-957.43,0.00021643,4]